fUSD/lending_fUSD_20250620
["ID","MTS","AMOUNT","RATE_DAILY","PERIOD"]
[366719662,1750416644767,-490.0,0.00025468,4]
[366719663,1750416644778,-490.0,0.00025468,4]
[366719664,1750416644789,-547.42,0.00025468,4]
[366719665,1750416644799,-490.0,0.00025468,4]
[366719666,1750416644810,-490.0,0.00025468,4]
[366719667,1750416644820,-490.0,0.00025468,4]
[366719668,1750416644832,-653.23,0.00025468,4]
[366719669,1750416644845,-490.0,0.00025468,4]
[366719670,1750416644857,-490.0,0.00025468,4]
[366719671,1750416644868,-490.0,0.00025468,4]
[366719672,1750416644880,-490.0,0.00025468,4]
[366719673,1750416644893,-490.0,0.00025468,4]
[366719674,1750416644904,-490.0,0.00025468,4]
[366719675,1750416644917,-490.0,0.00025468,4]
[366719676,1750416644930,-490.0,0.00025468,4]
[366719677,1750416644943,-856.82,0.00025468,4]
[366719678,1750416644955,-490.0,0.00025468,4]
[366719679,1750416644969,-490.0,0.00025468,4]
[366719680,1750416644982,-490.0,0.00025468,4]
[366719681,1750416644994,-490.0,0.00025468,4]
[366719682,1750416645006,-490.0,0.00025468,4]
[366719683,1750416645019,-490.0,0.00025468,4]
[366719684,1750416645031,-490.0,0.00025468,4]
[366719685,1750416645045,-1334.86,0.00025468,4]
[366719686,1750416645057,-490.0,0.00025468,4]
[366719687,1750416645068,-490.0,0.00025468,4]
[366719688,1750416645080,-490.0,0.00025468,4]
[366719689,1750416645093,-490.0,0.00025468,4]
[366719690,1750416645104,-490.0,0.00025468,4]
[366719691,1750416645115,-490.0,0.00025468,4]
[366719692,1750416645127,-490.0,0.00025468,4]
[366719693,1750416645140,-490.0,0.00025468,4]
[366719694,1750416645152,-490.0,0.00025468,4]
[366719695,1750416645163,-490.0,0.00025468,4]
[366719696,1750416645175,-490.0,0.00025468,4]
[366719697,1750416645187,-490.0,0.00025468,4]
[366719698,1750416645200,-490.0,0.00025468,4]
[366719699,1750416645211,-490.0,0.00025468,4]
[366719700,1750416645223,-490.0,0.00025468,4]
[366719701,1750416645236,-490.0,0.00025468,4]
[366719702,1750416645248,-490.0,0.00025468,4]
[366719703,1750416645261,-490.0,0.00025468,4]
[366719704,1750416645273,-490.0,0.00025468,4]
[366719705,1750416645285,-490.0,0.00025468,4]
[366719706,1750416645299,-490.0,0.00025468,4]
[366719707,1750416645310,-490.0,0.00025468,4]
[366719708,1750416645321,-490.0,0.00025468,4]
[366719709,1750416645332,-490.0,0.00025468,4]
[366719710,1750416645344,-490.0,0.00025468,4]
[366719711,1750416645355,-490.0,0.00025468,4]
[366719712,1750416645366,-490.0,0.00025468,4]
[366719713,1750416645378,-490.0,0.00025468,4]
[366719714,1750416645389,-490.0,0.00025468,4]
[366719715,1750416645400,-490.0,0.00025468,4]
[366719716,1750416645411,-490.0,0.00025468,4]
[366719717,1750416645422,-490.0,0.00025468,4]
[366719718,1750416645432,-490.0,0.00025468,4]
[366719719,1750416645444,-490.0,0.00025468,4]
[366719720,1750416645454,-490.0,0.00025468,4]
[366719721,1750416645465,-490.0,0.00025468,4]
[366719722,1750416645478,-490.0,0.00025468,4]
[366719723,1750416645490,-490.0,0.00025468,4]
[366719724,1750416645503,-273.15710687,0.00025469,4]
[366719725,1750416645516,-490.0,0.00025469,4]
[366719726,1750416645527,-490.0,0.00025469,4]
[366719727,1750416645538,-378.34753184,0.00025469,4]
[366719728,1750416645548,-314.93115552,0.00025469,4]
[366719729,1750416645559,-490.0,0.00025469,4]
[366719730,1750416645571,-490.0,0.00025469,4]
[366719731,1750416645581,-490.0,0.00025469,4]
[366719732,1750416645592,-490.0,0.00025469,4]
[366719733,1750416645603,-490.0,0.00025469,4]
[366719734,1750416645615,-490.0,0.00025469,4]
[366719735,1750416645628,-490.0,0.00025469,4]
[366719736,1750416645641,-490.0,0.00025469,4]
[366719737,1750416645653,-490.0,0.00025469,4]
[366719738,1750416645665,-490.0,0.00025469,4]
[366719739,1750416645676,-490.0,0.00025469,4]
[366719740,1750416645688,-490.0,0.00025469,4]
[366719741,1750416645701,-490.0,0.00025469,4]
[366719742,1750416645712,-490.0,0.00025469,4]
[366719743,1750416645724,-490.0,0.00025469,4]
[366719744,1750416645736,-490.0,0.00025469,4]
[366719745,1750416645747,-490.0,0.00025469,4]
[366719746,1750416645758,-490.0,0.00025469,4]
[366719747,1750416645768,-490.0,0.00025469,4]
[366719748,1750416645779,-426.60410823,0.00025469,4]
[366719749,1750416645790,-490.0,0.00025469,4]
[366719750,1750416645803,-490.0,0.00025469,4]
[366719751,1750416645816,-490.0,0.00025469,4]
[366719752,1750416645826,-490.0,0.00025469,4]
[366719753,1750416645838,-420.79338939,0.00025469,4]
[366719754,1750416645851,-490.0,0.00025469,4]
[366719755,1750416645863,-490.0,0.00025469,4]
[366719756,1750416645874,-266.97809964,0.0002547,3]
[366719757,1750416645884,-500.0,0.00025478,4]
[366719758,1750416645895,-500.0,0.00025479,4]
[366719759,1750416645906,-500.0,0.00025488,4]
[366719760,1750416645918,-500.0,0.00025489,4]
[366719761,1750416645929,-167.12,0.00025615,2]
[366719762,1750416645940,-159.15296315,0.00025621,2]
[366719763,1750416645951,-378.75392138,0.00025621,2]
[366719764,1750416645962,-500.0,0.00025634,4]
[366719765,1750416645974,-151.0,0.00025644,2]
[366719766,1750416645986,-151.0,0.00025644,2]
[366719767,1750416645996,-188.0,0.00025644,2]
[366719768,1750416646007,-1110.0229592,0.00025659,2]
[366719769,1750416646018,-1140.15130475,0.00025659,2]
[366719770,1750416646029,-1001.28907421,0.00025659,2]
[366719771,1750416646040,-1013.59670908,0.00025659,2]
[366719772,1750416646051,-1116.41908406,0.00025659,2]
[366719773,1750416646062,-500.0,0.0002571,2]
[366719774,1750416646072,-500.0,0.0002571,2]
[366719775,1750416646083,-502.18857201,0.0002571,2]
[366719776,1750416646094,-503.14780713,0.0002571,2]
[366719777,1750416646105,-500.0,0.0002571,2]
[366719778,1750416646115,-571.27180581,0.0002571,2]
[366719779,1750416646126,-500.0,0.0002571,2]
[366719780,1750416646138,-483.85240885,0.0002571,2]
[366719781,1750416646150,-376.41568255,0.0002571,2]
[366719782,1750416646161,-75987.3632788,0.00025711,3]
[366719783,1750416646172,-21710.6752225,0.00025721,3]
[366719784,1750416646183,-490.0,0.00025721,4]
[366719785,1750416646193,-490.0,0.00025721,4]
[366719786,1750416646204,-490.0,0.00025721,4]
[366719787,1750416646215,-490.0,0.00025721,4]
[366719788,1750416646226,-494.16349938,0.00025721,4]
[366719789,1750416646238,-304.49,0.00025721,4]
[366719790,1750416646248,-490.0,0.00025721,4]
[366719791,1750416646259,-490.0,0.00025721,4]
[366719792,1750416646270,-490.0,0.00025721,4]
[366719793,1750416646280,-297.52,0.00025721,4]
[366719794,1750416646291,-183.35,0.00025721,4]
[366719795,1750416646302,-514.05807571,0.00025721,4]
[366719796,1750416646313,-490.0,0.00025721,4]
[366719797,1750416646324,-490.0,0.00025721,4]
[366719798,1750416646335,-490.0,0.00025721,4]
[366719799,1750416646346,-490.0,0.00025721,4]
[366719800,1750416646357,-490.0,0.00025721,4]
[366719801,1750416646369,-490.0,0.00025721,4]
[366719802,1750416646380,-490.0,0.00025721,4]
[366719803,1750416646390,-581.66,0.00025721,4]
[366719804,1750416646401,-490.0,0.00025721,4]
[366719805,1750416646413,-868.01,0.00025721,4]
[366719806,1750416646423,-490.0,0.00025721,4]
[366719807,1750416646435,-490.0,0.00025721,4]
[366719808,1750416646446,-490.0,0.00025721,4]
[366719809,1750416646457,-490.0,0.00025721,4]
[366719810,1750416646473,-490.0,0.00025721,4]
[366719811,1750416646484,-490.0,0.00025721,4]
[366719812,1750416646494,-490.0,0.00025721,4]
[366719813,1750416646506,-187.69,0.00025721,4]
[366719814,1750416646516,-490.0,0.00025721,4]
[366719816,1750416646528,-490.0,0.00025721,4]
[366719817,1750416646539,-490.0,0.00025721,4]
[366719818,1750416646550,-399.6,0.00025721,4]
[366719819,1750416646561,-490.0,0.00025721,4]
[366719820,1750416646572,-490.0,0.00025721,4]
[366719821,1750416646583,-490.0,0.00025721,4]
[366719822,1750416646594,-490.0,0.00025721,4]
[366719823,1750416646604,-490.0,0.00025721,4]
[366719824,1750416646615,-490.0,0.00025721,4]
[366719825,1750416646626,-490.0,0.00025721,4]
[366719826,1750416646637,-490.0,0.00025721,4]
[366719827,1750416646648,-200.9,0.00025721,4]
[366719828,1750416646659,-490.0,0.00025721,4]
[366719829,1750416646669,-490.0,0.00025721,4]
[366719830,1750416646680,-342.41,0.00025721,4]
[366719831,1750416646691,-490.0,0.00025721,4]
[366719832,1750416646701,-490.0,0.00025721,4]
[366719833,1750416646712,-490.0,0.00025721,4]
[366719834,1750416646722,-490.0,0.00025721,4]
[366719835,1750416646733,-490.0,0.00025721,4]
[366719836,1750416646743,-473.83,0.00025721,4]
[366719837,1750416646754,-1303.97,0.00025721,4]
[366719838,1750416646764,-490.0,0.00025721,4]
[366719839,1750416646775,-490.0,0.00025721,4]
[366719840,1750416646786,-490.0,0.00025721,4]
[366719841,1750416646797,-490.0,0.00025721,4]
[366719842,1750416646808,-490.0,0.00025721,4]
[366719843,1750416646818,-295.41,0.00025721,4]
[366719844,1750416646829,-671.28,0.00025721,4]
[366719845,1750416646839,-1029.65,0.00025721,4]
[366719846,1750416646850,-490.0,0.00025721,4]
[366719847,1750416646860,-956.93,0.00025721,4]
[366719848,1750416646871,-490.0,0.00025721,4]
[366719849,1750416646882,-453.13,0.00025721,4]
[366719850,1750416646894,-561.7,0.00025721,4]
[366719851,1750416646905,-490.0,0.00025721,4]
[366719852,1750416646916,-464.93,0.00025721,4]
[366719853,1750416646927,-490.0,0.00025721,4]
[366719854,1750416646938,-490.0,0.00025721,4]
[366719855,1750416646948,-490.0,0.00025721,4]
[366719856,1750416646960,-490.0,0.00025721,4]
[366719857,1750416646975,-164.05,0.00025721,4]
[366719858,1750416646987,-490.0,0.00025721,4]
[366719859,1750416646998,-490.0,0.00025721,4]
[366719860,1750416647011,-490.0,0.00025721,4]
[366719861,1750416647021,-578.6,0.00025721,4]
[366719862,1750416647032,-511.18,0.00025721,4]
[366719863,1750416647043,-490.0,0.00025721,4]
[366719864,1750416647054,-953.8,0.00025721,4]
[366719865,1750416647066,-490.0,0.00025721,4]
[366719868,1750416647077,-450.2,0.00025721,4]
[366719870,1750416647088,-2602.41,0.00025721,4]
[366719872,1750416647098,-225.93,0.00025721,4]
[366719874,1750416647109,-540.02,0.00025721,4]
[366719876,1750416647119,-490.0,0.00025721,4]
[366719878,1750416647129,-490.0,0.00025721,4]
[366719880,1750416647141,-573.38,0.00025721,4]
[366719882,1750416647151,-490.0,0.00025721,4]
[366719885,1750416647163,-189.91,0.00025721,4]
[366719887,1750416647173,-490.0,0.00025721,4]
[366719889,1750416647184,-219.42,0.00025721,4]
[366719891,1750416647194,-490.0,0.00025721,4]
[366719893,1750416647205,-490.0,0.00025721,4]
[366719895,1750416647214,-490.0,0.00025721,4]
[366719897,1750416647225,-490.0,0.00025721,4]
[366719899,1750416647235,-492.72,0.00025721,4]
[366719900,1750416647246,-930.06,0.00025721,4]
[366719901,1750416647257,-490.0,0.00025721,4]
[366719902,1750416647269,-490.0,0.00025721,4]
[366719903,1750416647281,-490.0,0.00025721,4]
[366719904,1750416647291,-490.0,0.00025721,4]
[366719905,1750416647302,-257.34,0.00025721,4]
[366719906,1750416647313,-490.0,0.00025721,4]
[366719907,1750416647324,-499.12,0.00025721,4]
[366719908,1750416647336,-498.89,0.00025721,4]
[366719909,1750416647347,-490.0,0.00025721,4]
[366719910,1750416647359,-575.76968141,0.00025721,4]
[366719911,1750416647370,-490.0,0.00025721,4]
[366719912,1750416647380,-400.4132678,0.00025721,4]
[366719913,1750416647391,-490.0,0.00025721,4]
[366719914,1750416647402,-490.0,0.00025721,4]
[366719915,1750416647413,-490.0,0.00025721,4]
[366719916,1750416647425,-490.0,0.00025721,4]
[366719917,1750416647436,-592.84,0.00025721,4]
[366719918,1750416647447,-253.89,0.00025721,4]
[366719919,1750416647960,-490.0,0.00025721,4]
[366719920,1750416647971,-482.45,0.00025721,4]
[366719921,1750416647980,-494.49293981,0.00025721,4]
[366719922,1750416647991,-490.0,0.00025721,4]
[366719923,1750416648004,-360.22142116,0.00025721,4]
[366719924,1750416648016,-490.0,0.0002573,4]
[366719925,1750416648026,-326.92171903,0.0002573,4]
[366719926,1750416648036,-737.14,0.0002573,4]
[366719927,1750416648047,-490.0,0.00025731,4]
[366719928,1750416648057,-497.15815267,0.00025731,4]
[366719929,1750416648067,-490.0,0.00025731,4]
[366719930,1750416648077,-490.0,0.00025731,4]
[366719931,1750416648087,-490.0,0.00025731,4]
[366719932,1750416648097,-490.0,0.00025731,4]
[366719933,1750416648107,-178.54,0.00025731,4]
[366719934,1750416648118,-490.0,0.00025731,4]
[366719935,1750416648128,-490.0,0.00025731,4]
[366719936,1750416648138,-502.76205022,0.00025731,4]
[366719937,1750416648148,-521.28,0.00025731,4]
[366719938,1750416648158,-968.45,0.00025731,4]
[366719939,1750416648168,-490.0,0.00025731,4]
[366719940,1750416648178,-490.0,0.00025731,4]
[366719941,1750416648188,-490.0,0.00025731,4]
[366719942,1750416648199,-490.0,0.00025731,4]
[366719943,1750416648208,-490.0,0.00025731,4]
[366719944,1750416648218,-490.0,0.00025731,4]
[366719945,1750416648229,-490.0,0.00025731,4]
[366719946,1750416648239,-490.0,0.00025731,4]
[366719947,1750416648250,-490.0,0.00025731,4]
[366719948,1750416648260,-490.0,0.00025731,4]
[366719949,1750416648270,-490.0,0.00025731,4]
[366719950,1750416648280,-490.0,0.00025731,4]
[366719951,1750416648290,-390.91,0.00025731,4]
[366719952,1750416648300,-490.0,0.00025731,4]
[366719953,1750416648310,-456.37119305,0.00025731,4]
[366719954,1750416648320,-490.0,0.00025731,4]
[366719955,1750416648331,-518.68460719,0.00025731,4]
[366719956,1750416648341,-526.6639643,0.00025731,4]
[366719957,1750416648352,-490.0,0.00025731,4]
[366719958,1750416648362,-490.0,0.00025731,4]
[366719959,1750416648372,-848.41,0.00025731,4]
[366719960,1750416648383,-18092.2293521,0.00025732,3]
[366719961,1750416648394,-500.0,0.00025742,4]
[366719962,1750416648404,-490.0,0.00025742,4]
[366719963,1750416648414,-494.63,0.00025742,4]
[366719964,1750416648424,-490.0,0.00025742,4]
[366719965,1750416648436,-570.07,0.00025742,4]
[366719966,1750416648446,-490.0,0.00025742,4]
[366719967,1750416648456,-189.27,0.00025742,4]
[366719968,1750416648467,-490.0,0.00025742,4]
[366719969,1750416648477,-493.42,0.00025742,4]
[366719970,1750416648486,-490.0,0.00025742,4]
[366719971,1750416648496,-490.0,0.00025742,4]
[366719972,1750416648506,-383.6,0.00025742,4]
[366719973,1750416648516,-500.38,0.00025742,4]
[366719974,1750416648527,-490.0,0.00025742,4]
[366719975,1750416648538,-490.0,0.00025742,4]
[366719976,1750416648548,-318.21727227,0.00025742,4]
[366719977,1750416648559,-490.0,0.00025742,4]
[366719978,1750416648569,-490.0,0.00025742,4]
[366719979,1750416648580,-490.0,0.00025742,4]
[366719980,1750416648590,-1055.86,0.00025742,4]
[366719981,1750416648601,-169.69,0.00025742,4]
[366719982,1750416648611,-281.45,0.00025742,4]
[366719983,1750416648621,-490.0,0.00025742,4]
[366719984,1750416648632,-635.6,0.00025742,4]
[366719985,1750416648643,-490.0,0.00025742,4]
[366719986,1750416648653,-490.0,0.00025742,4]
[366719987,1750416648663,-490.0,0.00025742,4]
[366719988,1750416648673,-490.0,0.00025742,4]
[366719989,1750416648683,-490.0,0.00025742,4]
[366719990,1750416648693,-490.0,0.00025742,4]
[366719991,1750416648704,-498.78,0.00025742,4]
[366719992,1750416648714,-490.0,0.00025742,4]
[366719993,1750416648723,-490.0,0.00025742,4]
[366719994,1750416648733,-490.0,0.00025742,4]
[366719995,1750416648743,-513.76986382,0.00025742,4]
[366719996,1750416648754,-490.0,0.00025742,4]
[366719997,1750416648764,-490.0,0.00025742,4]
[366719998,1750416648774,-1132.4,0.00025742,4]
[366719999,1750416648784,-490.0,0.00025742,4]
[366720000,1750416648794,-490.0,0.00025742,4]
[366720001,1750416648804,-490.0,0.00025742,4]
[366720002,1750416648814,-490.0,0.00025742,4]
[366720003,1750416648824,-490.0,0.00025742,4]
[366720004,1750416648834,-490.0,0.00025742,4]
[366720005,1750416648844,-490.0,0.00025742,4]
[366720006,1750416648854,-490.0,0.00025742,4]
[366720007,1750416648864,-490.0,0.00025742,4]
[366720008,1750416648874,-490.0,0.00025742,4]
[366720009,1750416648884,-490.0,0.00025742,4]
[366720010,1750416648894,-490.0,0.00025742,4]
[366720011,1750416648904,-490.0,0.00025742,4]
[366720012,1750416648914,-490.0,0.00025742,4]
[366720013,1750416648925,-490.0,0.00025742,4]
[366720014,1750416648935,-490.0,0.00025742,4]
[366720015,1750416648946,-490.0,0.00025742,4]
[366720016,1750416648956,-490.0,0.00025742,4]
[366720017,1750416648966,-490.0,0.00025742,4]
[366720018,1750416648976,-490.0,0.00025742,4]
[366720019,1750416648988,-490.0,0.00025742,4]
[366720020,1750416648998,-490.0,0.00025742,4]
[366720021,1750416649008,-490.0,0.00025742,4]
[366720022,1750416649017,-490.0,0.00025742,4]
[366720023,1750416649028,-490.0,0.00025742,4]
[366720024,1750416649037,-547.42,0.00025742,4]
[366720025,1750416649046,-609.39,0.00025742,4]
[366720026,1750416649056,-490.0,0.00025742,4]
[366720027,1750416649068,-653.23,0.00025742,4]
[366720028,1750416649078,-490.0,0.00025742,4]
[366720029,1750416649088,-490.0,0.00025742,4]
[366720030,1750416649097,-490.0,0.00025742,4]
[366720031,1750416649109,-856.82,0.00025742,4]
[366720032,1750416649119,-490.0,0.00025742,4]
[366720033,1750416649128,-258.83,0.00025742,4]
[366720034,1750416649137,-490.0,0.00025742,4]
[366720035,1750416649147,-490.0,0.00025742,4]
[366720036,1750416649157,-1334.86,0.00025742,4]
[366720037,1750416649166,-490.0,0.00025742,4]
[366720038,1750416649176,-490.0,0.00025742,4]
[366720039,1750416649186,-490.0,0.00025742,4]
[366720040,1750416649195,-490.0,0.00025742,4]
[366720041,1750416649205,-490.0,0.00025742,4]
[366720042,1750416649215,-493.0722488,0.00025742,4]
[366720043,1750416649224,-542.4401918,0.00025742,4]
[366720044,1750416649234,-281.09429394,0.00025742,4]
[366720045,1750416649244,-490.0,0.00025742,4]
[366720046,1750416649254,-490.0,0.00025742,4]
[366720047,1750416649264,-490.0,0.00025742,4]
[366720048,1750416649275,-490.0,0.00025742,4]
[366720049,1750416649284,-490.0,0.00025742,4]
[366720050,1750416649294,-490.0,0.00025742,4]
[366720051,1750416649303,-490.0,0.00025742,4]
[366720052,1750416649313,-490.0,0.00025742,4]
[366720053,1750416649323,-490.0,0.00025742,4]
[366720054,1750416649333,-490.0,0.00025742,4]
[366720055,1750416649343,-510.65193408,0.00025742,4]
[366720056,1750416649352,-490.0,0.00025742,4]
[366720057,1750416649362,-490.0,0.00025742,4]
[366720058,1750416649372,-490.0,0.00025742,4]
[366720059,1750416649382,-506.15,0.00025742,4]
[366720060,1750416649393,-322.41,0.00025742,4]
[366720061,1750416649403,-490.0,0.00025742,4]
[366720062,1750416649413,-490.0,0.00025742,4]
[366720063,1750416649423,-490.0,0.00025742,4]
[366720064,1750416649433,-490.0,0.00025742,4]
[366720065,1750416649443,-494.91438839,0.00025742,4]
[366720066,1750416649453,-214.57432833,0.00025743,4]
[366720067,1750416649462,-490.0,0.00025743,4]
[366720068,1750416649472,-500.0,0.00025752,4]
[366720069,1750416649481,-500.0,0.00025752,4]
[366720070,1750416649491,-500.0,0.00025762,4]
[366720071,1750416649501,-500.0,0.00025763,4]
[366720072,1750416649510,-500.0,0.00025773,2]
[366720073,1750416649521,-7236.89174084,0.00025775,3]
[366720074,1750416649531,-1070.79173868,0.00025785,2]
[366720075,1750416649541,-1119.61683449,0.00025785,2]
[366720076,1750416649550,-1022.50299277,0.00025785,2]
[366720077,1750416649561,-1615.26025793,0.00025785,2]
[366720078,1750416649571,-151.11,0.00025832,2]
[366720079,1750416649582,-500.0,0.0002589,4]
[366720080,1750416649592,-201.25753565,0.000259,14]
[366720081,1750416649602,-263.102214,0.00025909,7]
[366720082,1750416649612,-263.102214,0.00025909,7]
[366720083,1750416649622,-154.32703235,0.00025954,2]
[366720084,1750416649632,-3618.44587042,0.00025975,3]
[366720085,1750416649643,-3618.44587042,0.00025978,3]
[366720086,1750416649653,-10855.3376113,0.00025985,3]
[366720087,1750416649663,-36184.4587042,0.00025985,3]
[366720088,1750416649673,-500.0,0.00025988,4]
[366720089,1750416649683,-500.0,0.00025988,4]
[366720090,1750416649693,-500.0,0.00025988,4]
[366720091,1750416649703,-263.102214,0.00025989,7]
[366720092,1750416649712,-263.102214,0.00025989,7]
[366720093,1750416649722,-340.45111,0.00025989,7]
[366720094,1750416649731,-340.45111,0.00025989,7]
[366720095,1750416649742,-340.45111,0.00025989,7]
[366720096,1750416649752,-340.45111,0.00025989,7]
[366720097,1750416649762,-490.0,0.00025995,4]
[366720098,1750416649771,-190.68,0.00025995,4]
[366720099,1750416649781,-484.36,0.00025995,4]
[366720100,1750416649792,-541.52,0.00025995,4]
[366720101,1750416649801,-490.0,0.00025995,4]
[366720102,1750416649812,-490.0,0.00025995,4]
[366720103,1750416649822,-490.0,0.00025995,4]
[366720104,1750416649833,-490.0,0.00025995,4]
[366720105,1750416649842,-490.0,0.00025995,4]
[366720106,1750416649852,-581.66,0.00025995,4]
[366720107,1750416649863,-576.68353915,0.00025995,4]
[366720108,1750416649873,-868.01,0.00025995,4]
[366720109,1750416649883,-490.0,0.00025995,4]
[366720110,1750416649893,-490.0,0.00025995,4]
[366720111,1750416649903,-490.0,0.00025995,4]
[366720112,1750416649914,-490.0,0.00025995,4]
[366720113,1750416649923,-490.0,0.00025995,4]
[366720114,1750416649933,-515.01,0.00025995,4]
[366720115,1750416649943,-490.0,0.00025995,4]
[366720116,1750416649953,-490.0,0.00025995,4]
[366720117,1750416649962,-490.0,0.00025995,4]
[366720118,1750416649972,-490.0,0.00025995,4]
[366720119,1750416649982,-490.0,0.00025995,4]
[366720120,1750416649992,-637.33,0.00025995,4]
[366720121,1750416650001,-490.0,0.00025995,4]
[366720122,1750416650011,-490.0,0.00025995,4]
[366720123,1750416650021,-490.0,0.00025995,4]
[366720124,1750416650031,-364.48,0.00025995,4]
[366720125,1750416650040,-490.0,0.00025995,4]
[366720126,1750416650050,-490.0,0.00025995,4]
[366720127,1750416650060,-490.0,0.00025995,4]
[366720128,1750416650070,-490.0,0.00025995,4]
[366720129,1750416650079,-490.0,0.00025995,4]
[366720130,1750416650089,-490.0,0.00025995,4]
[366720131,1750416650098,-490.0,0.00025995,4]
[366720132,1750416650108,-490.0,0.00025995,4]
[366720133,1750416650117,-1303.97,0.00025995,4]
[366720134,1750416650127,-273.79,0.00025995,4]
[366720135,1750416650138,-490.0,0.00025995,4]
[366720136,1750416650148,-315.2,0.00025995,4]
[366720137,1750416650158,-490.0,0.00025995,4]
[366720138,1750416650168,-297.03,0.00025995,4]
[366720139,1750416650177,-671.28,0.00025995,4]
[366720140,1750416650187,-1029.65,0.00025995,4]
[366720141,1750416650196,-153.07,0.00025995,4]
[366720142,1750416650206,-956.93,0.00025995,4]
[366720143,1750416650216,-432.46,0.00025995,4]
[366720144,1750416650226,-561.7,0.00025995,4]
[366720145,1750416650235,-490.0,0.00025995,4]
[366720146,1750416650244,-490.0,0.00025995,4]
[366720147,1750416650253,-490.0,0.00025995,4]
[366720148,1750416650323,-392.42,0.00025995,4]
[366720149,1750416650333,-407.47,0.00025995,4]
[366720150,1750416650343,-490.0,0.00025995,4]
[366720151,1750416650352,-490.0,0.00025995,4]
[366720152,1750416650362,-222.74,0.00025995,4]
[366720153,1750416650372,-511.18,0.00025995,4]
[366720154,1750416650382,-246.46,0.00025995,4]
[366720155,1750416650391,-953.8,0.00025995,4]
[366720156,1750416650401,-490.0,0.00025995,4]
[366720157,1750416650410,-2602.41,0.00025995,4]
[366720158,1750416650420,-540.02,0.00025995,4]
[366720159,1750416650430,-165.45,0.00025995,4]
[366720160,1750416650439,-490.0,0.00025995,4]
[366720161,1750416650449,-229.56728297,0.00025995,4]
[366720162,1750416650458,-490.0,0.00025995,4]
[366720163,1750416650467,-490.0,0.00025995,4]
[366720164,1750416650477,-490.0,0.00025995,4]
[366720165,1750416650486,-184.82,0.00025995,4]
[366720166,1750416650495,-492.72,0.00025995,4]
[366720167,1750416650505,-930.06,0.00025995,4]
[366720168,1750416650515,-490.0,0.00025995,4]
[366720169,1750416650525,-490.0,0.00025995,4]
[366720170,1750416650534,-490.0,0.00025995,4]
[366720171,1750416650543,-490.0,0.00025995,4]
[366720172,1750416650552,-169.69,0.00025995,4]
[366720173,1750416650562,-207.01,0.00025995,4]
[366720174,1750416650571,-372.37,0.00025995,4]
[366720175,1750416650581,-490.0,0.00025995,4]
[366720176,1750416650591,-490.0,0.00025995,4]
[366720177,1750416650601,-490.0,0.00025995,4]
[366720178,1750416650611,-592.84,0.00025995,4]
[366720179,1750416650621,-264.85,0.00025995,4]
[366720180,1750416650631,-490.0,0.00025995,4]